Cogmind - Beta 16.1 @@@ ROGUE MODE // 2026.03.08 @ 15:13:23 Player: Ben Result: Destroyed by G-34 Mercenary with Small Laser Performance ------------- Evolutions (0) 0 Regions Visited (1) 200 Robots Destroyed (8) 40 Value Destroyed (249) 249 Prototype IDs (0) 0 Alien Tech Used (0) 0 Bonus (0) 0 TOTAL SCORE: 489 Bonus ------- None Cogmind --------- Core Integrity 0/250 Matter 300/300 Energy 84/100 System Corruption 0% Temperature Cool (6) Movement Flying (1640) Ox20 Location -10/Materials Parts ------- > --- POWER (1) -------- (None) > --- PROPULSION (2) --- Flight Unit > --- UTILITY (2) ------ Heat Sink Huge Storage Unit > --- WEAPON (2) ------- (None) > --- INVENTORY (25) --- Small Battery (100) Small Laser Light Assault Rifle Datajack Peak State ------------ > --- POWER ------------ Light Ion Engine > --- PROPULSION ------- Wheel Wheel > --- UTILITY ---------- Small Battery Terrain Scanner > --- WEAPON ----------- EM Pulse Gun Light Assault Rifle > --- INVENTORY -------- Heat Sink EM Pulse Gun Small Laser Datajack [Rating: 7] Favorites ----------- Power Light Ion Engine Engine Light Ion Engine Propulsion Wheel Wheel Wheel Flight Unit Flight Unit Utility Huge Storage Unit Device Heat Sink Storage Huge Storage Unit Weapon EM Pulse Gun Energy Gun EM Pulse Gun Energy Cannon Beam Cannon Ballistic Gun Light Assault Rifle Build | -11 -10 ------- Run | Yrd Mat Slots Evolved . | . . Power . | . . Propulsion . | . . Utility . | . . Weapon . | . . Parts Attached 13 | 5 8 Power 1 | 1 . Engine 1 | 1 . Core . | . . Reactor . | . . Propulsion 4 | 2 2 Treads . | . . Leg . | . . Wheel 3 | 2 1 Hover . | . . Flight 1 | . 1 Utility 4 | . 4 Device 2 | . 2 Storage 2 | . 2 Processor . | . . Hackware . | . . Protection . | . . Artifact . | . . Weapon 4 | 2 2 Energy Gun 2 | 1 1 Energy Cannon 1 | . 1 Ballistic Gun 1 | 1 . Ballistic Cannon . | . . Launcher . | . . Special Weapon . | . . Impact Weapon . | . . Slashing Weapon . | . . Piercing Weapon . | . . Special Melee Weapon . | . . Unidentified Prototypes . | . . Parts Lost 8 | . 8 Power 1 | . 1 Propulsion 3 | . 3 Utility 1 | . 1 Weapon 3 | . 3 Highest Loss Streak 3 | . 3 To Critical Strikes . | . . Average Backups 5 | 1 5 Power . | . . Propulsion . | . . Utility 1 | . 1 Weapon 2 | . 2 Tool/Special . | . . Unused Backups 2 | . 2 Power . | . . Propulsion . | . . Utility . | . . Weapon 1 | . 1 Tool/Special 1 | . 1 Average Slot Usage (%) 75 | . 75 Engine 9 | . 9 Wheel 9 | . 9 Flight 7 | . 7 Device 8 | . 8 Storage 12 | . 12 Energy Gun 11 | . 11 Energy Cannon 6 | . 6 Ballistic Gun 10 | . 10 Peak Build Rating 7 | 5 7 Average Rating 5 | 3 5 On Entrance 2 | . 5 Avg Prop Armor Cover (%) 4 | . 4 Naked Turns . | . . Heaviest Build 88 | 6 88 Greatest Support 20 | 20 20 Greatest Overweight (x) 28 | . 28 Average Overweight (x) 3 | . 4 Largest Inventory Capacity 25 | 5 25 Average Capacity 20 | 5 21 Most Carried 8 | 3 8 Average Carried 5 | . 5 Final Capacity 25 | 5 25 Final Carried 4 | 3 4 Class Distribution -------------------- 100% | Mutant Dominant Class ---------------- Mutant | -10/Materials Resources | -11 -10 ----------- Run | Yrd Mat Matter Collected 342 | 252 90 Remotely . | . . Salvage Created 312 | 49 263 Parts 17 | 4 13 Haulers Intercepted . | . . Recyclers Shooed . | . . Parts Field Recycled . | . . Retrieved Matter . | . . Parts Self-Destructed . | . . Prevented . | . . Parts Restored . | . . Kills | -11 -10 ------- Run | Yrd Mat Combat Hostiles Destroyed 6 | 1 5 Guns 5 | 1 4 Cannons 1 | . 1 Classes Destroyed 3 | 1 2 Operator 1 | . 1 Watcher 1 | . 1 Grunt 6 | 1 5 Best Kill Streak 3 | 1 3 Combat Bots Only 3 | 1 3 Max Kills in Single Turn 1 | 1 1 Gunslinging . | . . Exploded . | . . Melee . | . . Uniques/NPCs Destroyed . | . . Combat | -11 -10 -------- Run | Yrd Mat Hostile Shots Fired 101 | 3 98 Missed 31 | 3 28 Hits 70 | . 70 Projectile 70 | . 70 Damage Taken 871 | . 871 Core 254 | . 254 Absorbed by Shields . | . . Core Remaining (%) 100 | 100 . Volleys Fired 37 | 2 35 Largest 2 | 2 2 Hottest 80 | 60 80 Shots Fired 73 | 4 69 Gun 56 | 4 52 Cannon 17 | . 17 Launcher . | . . Special . | . . Kinetic 32 | 2 30 Thermal 17 | . 17 Explosive . | . . Electromagnetic 24 | 2 22 Robot Hit Streak 10 | 2 10 Robot Miss Streak 3 | 1 3 Penetration Max . | . . Secondary Targets . | . . Shots Hit Robots 47 | 3 44 Core Hits 20 | 2 18 Critical Kills . | . . Critical Parts Destroyed . | . . Critical Strikes . | . . Melee Attacks . | . . Impact . | . . Slashing . | . . Piercing . | . . Sneak Attacks . | . . Combat Hostiles . | . . Follow-up Attacks . | . . Damage Inflicted 595 | 35 560 Guns 453 | 35 418 Cannons 142 | . 142 Explosions . | . . Melee . | . . Ramming . | . . Kinetic 172 | 10 162 Thermal 142 | . 142 Explosive . | . . Electromagnetic 281 | 25 256 Impact . | . . Slashing . | . . Piercing . | . . Highest Corruption . | . . Average Corruption . | . . Corruption Purged . | . . Corruption Blocked . | . . Overload Shots . | . . Overflow Damage . | . . Projectiles . | . . Explosions . | . . Melee . | . . Knockbacks . | . . Impact . | . . Kinetic . | . . Secondary . | . . Self-Inflicted Damage . | . . Shots . | . . Rammed . | . . Targets Rammed . | . . Kicked . | . . Crushed . | . . Highest Temperature 318 | 20 318 Average Temperature 91 | 15 94 Received Heat Transfer 486 | . 486 Siege Activations . | . . Martial Activations . | . . Shielding Activations . | . . Robots Disrupted . | . . Combat Hostiles . | . . Robots Corrupted . | . . Combat Hostiles . | . . Parts Fried . | . . Impact Corruptions . | . . Robots Melted . | . . Combat Hostiles . | . . Parts Melted . | . . Heat Transferred 296 | . 296 Parts Sabotaged . | . . Parts Stolen . | . . Parts Stripped . | . . Power Chain Reactions . | . . Alert | -11 -10 ------- Run | Yrd Mat Maximum Alert Level . | . . Low Security (%) 100 | 100 100 Level 1 . | . . Level 2 . | . . Level 3 . | . . Level 4 . | . . Level 5 . | . . High Security . | . . Max Security . | . . Peak Influence 54 | 20 54 Initial 6 | . 6 Average 5 | 4 5 Influence Increases 184 | 20 164 Destroy 0b10 Robot/C 120 | 20 100 Destroy 0b10 Robot/NC 10 | . 10 Destroy Leader 22 | . 22 Successful Hack 17 | . 17 Partial Spotted 15 | . 15 Influence Decreases 184 | 10 174 Entered New Map 4 | . 4 Time Decay 160 | 10 150 Lost Part 20 | . 20 Squads Dispatched 1 | . 1 Investigation 1 | . 1 Extermination . | . . Reinforcement . | . . Assault . | . . Garrison . | . . Intercept . | . . Searches Triggered . | . . Construction Impeded . | . . Haulers Reinforced . | . . Active Scanning Responses . | . . Cargo Convoy Interrupts . | . . Stealth | -11 -10 --------- Run | Yrd Mat Distress Signals . | . . Communications Jammed . | . . Distress Signals . | . . Times Spotted 15 | 1 14 Peak Tracking Total 3 | 1 3 Tactical Retreats . | . . Traps | -11 -10 ------- Run | Yrd Mat Traps Triggered 1 | . 1 Indirectly . | . . Trap Hack Attempts . | . . Triggered . | . . Disarmed . | . . Reprogrammed . | . . Reused . | . . Traps Extracted . | . . Installed . | . . Triggered . | . . Machines | -11 -10 ---------- Run | Yrd Mat Machines Disabled . | . . Max in Single Turn . | . . Machines Repaired . | . . Machines Dismantled . | . . Machines Sabotaged . | . . Overloaded Fab Kills . | . . Hacking | -11 -10 --------- Run | Yrd Mat Machines Accessed 2 | . 2 Terminals 2 | . 2 Fabricators . | . . Repair Stations . | . . Recycling Units . | . . Scanalyzers . | . . Garrison Access . | . . Total Hacks 11 | . 11 Successful 7 | . 7 Failed 4 | . 4 Catastrophic . | . . Database Lockouts . | . . Manual . | . . Terminals 11 | . 11 Fabricators . | . . Repair Stations . | . . Recycling Units . | . . Scanalyzers . | . . Garrison Access . | . . Terminal Hacks 7 | . 7 Record 3 | . 3 Dispatch Records 1 | . 1 Maintenance Status 1 | . 1 Investigation Status 1 | . 1 Hauler Manifests 1 | . 1 Fabricator Hacks . | . . Repair Station Hacks . | . . Recycling Unit Hacks . | . . Scanalyzer . | . . Garrison Access Hacks . | . . Unauthorized Hacks . | . . Terminals . | . . Fabricators . | . . Repair Stations . | . . Recycling Units . | . . Scanalyzers . | . . Garrison Access . | . . Data Cores Recovered 1 | . 1 Used 1 | . 1 Hacking Detections 2 | . 2 Full Trace Events . | . . Feedback Events . | . . Feedback Blocked . | . . Robot Schematics Acquired . | . . Robots Built . | . . Authchips . | . . Time . | . . Total Robot Build Rating . | . . Part Schematics Acquired . | . . Parts Built . | . . Authchips . | . . Time . | . . Total Part Build Rating . | . . Part Studies Acquired . | . . Parts Repaired . | . . Time . | . . Parts Recycled . | . . Recycled Matter . | . . Retrieved Matter . | . . Retrieved Components . | . . Parts Scanalyzed . | . . Part Schematics Acquired . | . . Parts Damaged . | . . Bothacking | -11 -10 ------------ Run | Yrd Mat Used RIF Installer . | . . Robots Hacked . | . . Non-combat . | . . Combat . | . . Robot Hacks Applied . | . . Relay Couplers Released . | . . Fabnet Peak Effective % . | . . Robots Rewired . | . . Allies Hacked . | . . Hacks Repelled . | . . Allies | -11 -10 -------- Run | Yrd Mat Total Allies . | . . Largest Group . | . . Highest-Rated Group . | . . Highest-Rated Ally . | . . Total Orders . | . . Ally Attacks . | . . Total Damage . | . . Kills . | . . Allies Corrupted . | . . Allies Melted . | . . Intel | -11 -10 ------- Run | Yrd Mat Active Infowar (turns) 302 | . 302 Terrain 302 | . 302 Robot Analysis Total . | . . Derelict Logs Recovered . | . . Drone Launches . | . . Drone Recoveries . | . . Exploration | -11 -10 ------------- Run | Yrd Mat Turns Passed 1430 | 90 1340 Spaces Moved 521 | 98 423 Core 36 | 21 15 Treads . | . . Legs . | . . Wheels 450 | 77 373 Hover . | . . Flight 35 | . 35 Fastest Speed 50 | 50 80 Average Speed 247 | 73 287 Slowest Speed 1725 | 80 1725 Overloaded Moves . | . . Propulsion Burnouts . | . . Robots Hopped . | . . Potential Cave-ins . | . . Cave-ins Triggered . | . . Exploration Rate (%) 23 | 7 39 Regions Visited 1 Branch Regions . Pre-discovered Areas . | . . Known Exits Taken . | . . Unknown Exits Taken 1 | 1 . Scrap Searched . | . . Spaces Dug . | . . Terrain Destroyed . | . . Melee . | . . Projectile . | . . AOE . | . . Terrain Rammed . | . . Walls Destroyed . | . . Machines Disabled . | . . Actions | -11 -10 --------- Run | Yrd Mat Total 597 | 112 485 Wait 3 | . 3 Move 520 | 97 423 Hop . | . . Pick Up 19 | 8 11 Fast Attach . | . . Attach 11 | 5 6 Detach . | . . Swap 3 | . 3 Drop 4 | . 4 Fire 37 | 2 35 Melee . | . . Ram . | . . Kick . | . . Crush . | . . Escape Stasis . | . . Rewire . | . . Trap . | . . Miscellaneous . | . . Route ------- -11/Scrapyard -10/Materials (discovered 1 exit: [*Mat]) History --------- Turn | Location | Event 2 | -11/Scrapyard | Met Revision 17 58 | -11/Scrapyard | Discovered new exit (range 8) 91 | -11/Scrapyard | Entered Materials 318 | -10/Materials | Build established: Mutant 520 | -10/Materials | Lost 3 parts (2n1u) 1009 | -10/Materials | Discovered new exit (range 14) 1051 | -10/Materials | Core integrity fell below 50% 1091 | -10/Materials | Lost 3 parts (1p1n1w) 1413 | -10/Materials | Core integrity fell below 20% 1431 | -10/Materials | Destroyed by G-34 Mercenary with Small Laser Last Messages --------------- Dropped EM Pulse Gun. Acquired EM Pulse Gun. R-06 Scavenger collects Aluminum Leg. R-06 Scavenger collects Sml. Laser. R-06 Scavenger collects Corrupted Ion Engine. Acquired 45 matter. R-06 Scavenger collects Sml. Laser. Destroyed Lgt. Ion Engine. W-16 Scout destroyed. R-06 Scavenger collects Visual Processing Unit. K-01 Serf collects debris. [Achievement: Crack Shot] G-47 Trooper IFF system glitched. To regain energy, simply wait via the mouse wheel, '.', or KP5. Also make sure your per-turn energy generation is a net positive, and consider deactivating power-draining parts if not. EM Pulse Gun destroyed. G-47 Trooper IFF system glitched. K-01 Serf destroyed. [Achievement: First Step to Greatness] Map ----- +----------------------------------------------------+ | ## """ #????#??? ????????????????????????????? | | ## """ #??????????????????????????????????????? | | # #?????#?? ??????"??????????????????????? | | # """ #?????#???????? "??????????????????????? | | + """ #????????????? """ ??????????????????? | | # """ #????? ?? ?? ??????????????????? | | # #?????? ? ????????????????????? | | ########+##???????# """????????????????????? | | #???# ########## """????????????????????? | | #?#?# ## # """????????????????????? | | ##??# + % + #????????????????? | | = #???#### % # [ #????????????????? | | = /#?????######+### ########???????????????????? | | #?????????# #???? ?????????????????????? | | ########### #??????????????????????????? | | + +??????????????????????????? | | ###############+### #??????????????????????????? | | ##??# !! # # #??????????????????????????? | | #### != # # #??#???????????????????????? | | + = # + ##?????????????????????????? | | #### # # ##???#?????????????????????? | | #??# # # % #??? #?????????????????????? | | #??###### # #??? #?????????????????????? | | ########## # % #??? #?????????????????????? | | # # # %#### #?????????????????????? | | # ""# #% g =@ #?????????????????????? | | # T"########## g % #?????????????????????? | | # ""#????????# #?????????????????????? | | # #????#???# #?????????????????????? | | + """"" #????????# +?????????????????????? | | # """"" #????????# # ????????????????????? | | # """"" #????????###### < # "???????????????????? | | # #?????????????# #? ???????????????????? | | ##########?????????????#####? ??????????????????? | | ????# #???????????????????? ?????????????????? | | ##### ""#????????????????????? ????????????????? | | + T"#?????????????????????##????????????????? | | ##### ""#???????????????????????????????????????? | | ????# #???????????????????????????????????????? | | ????# #???????????????????????????????????????? | | ????# #???????????????????????????????????????? | | ????######???????????????????????????????????????? | | ?????????????????????????????????????????????????? | | | | | | | | | | | | | | | +----------------------------------------------------+ Best States ------------- Heat Dissipation 35 Energy Generation 10 Energy Capacity 225 Matter Stores 300 Matter Capacity 300 Sight Range 16 Terrain Scan Range 14 Terrain Scan Density 10 Evasion (%) 50 Item Schematics ----------------- None Robot Schematics ------------------ None Fabricated ------------ Nothing Repaired ---------- Nothing Studied --------- None Alien Tech Used ----------------- None Achievements -------------- Crack Shot DATA ERROR: Steam Global Achievement% Dynamic Key First Step to Greatness Ghost 'Em Shopping List Challenges ------------ None Game ------ Seed DynamicResetClaws Manual? 0 Play Time 00:22:06 Cumulative 1.3 hours Start 2026.03.08 @ 13:02:05 End 2026.03.08 @ 15:13:23 Sessions 1 Manual Loads 0 Difficulty Rogue Special Mode None Game No. 2 Rogue 2 Adventurer 0 Explorer 0 Win Type - Total 0 Types 0/0/0/0/0/0/0/0/0/0 Lore% 1 Gallery% 2 Achievement% 4 Wizard Run 0 Options --------- Layout 0 ASCII 0 Keyboard 0 Movement Mouse Keybinds 0 Fullscreen 1 Font 24/Smallcaps Map View 76x50 Zoom Use 0% Tactical HUD 0 Map Filters NONE Filters NONE Steam 1 RUN: a41491db-0844-4877-b8d4-c6d216230494